[Event "Titled Tuesday Blitz October 11 Early 2022"]
[White "Titichoca Daza, Daniel"]
[Black "Turutin, Alexander"]
[WhiteFideId "3309550"]
[BlackFideId "4180623"]
[WhiteElo "2105"]
[BlackElo "2402"]
[Result "0-1"]
[Round "11"]
[TimeControl "180+1"]
[Date "2022.10.12"]
[WhiteClock "0:00:07"]
[BlackClock "0:00:12"]

1. c4 {[%clk 0:03:00]}  Nf6 {[%clk 0:02:54]} 2. g3 {[%clk 0:02:58]}  g6 {[%clk 0:02:53]} 3. Bg2 {[%clk 0:02:58]}  Bg7 {[%clk 0:02:54]} 4. e4 {[%clk 0:02:59]}  d6 {[%clk 0:02:47]} 5. Nc3 {[%clk 0:02:59]}  O-O {[%clk 0:02:47]} 6. Nge2 {[%clk 0:03:00]}  c5 {[%clk 0:02:34]} 7. O-O {[%clk 0:02:59]}  Nc6 {[%clk 0:02:34]} 8. h3 {[%clk 0:02:58]}  a6 {[%clk 0:01:52]} 9. d3 {[%clk 0:02:58]}  Rb8 {[%clk 0:01:52]} 10. a4 {[%clk 0:02:55]}  Ne8 {[%clk 0:01:50]} 11. Be3 {[%clk 0:02:47]}  Nd4 {[%clk 0:01:46]} 12. Bxd4 {[%clk 0:02:45]}  cxd4 {[%clk 0:01:46]} 13. Nb1 {[%clk 0:02:45]}  Qb6 {[%clk 0:01:38]} 14. Qc2 {[%clk 0:02:18]}  e5 {[%clk 0:01:32]} 15. a5 {[%clk 0:02:16]}  Qc7 {[%clk 0:01:19]} 16. Nd2 {[%clk 0:02:16]}  f5 {[%clk 0:01:11]} 17. exf5 {[%clk 0:02:11]}  gxf5 {[%clk 0:01:09]} 18. Rfc1 {[%clk 0:02:09]}  Be6 {[%clk 0:01:00]} 19. Bd5 {[%clk 0:01:39]}  Qf7 {[%clk 0:00:50]} 20. Bg2 {[%clk 0:01:35]}  Nf6 {[%clk 0:00:47]} 21. Nf3 {[%clk 0:01:33]}  Bh6 {[%clk 0:00:47]} 22. Rf1 {[%clk 0:01:31]}  Kh8 {[%clk 0:00:46]} 23. Qa4 {[%clk 0:01:23]}  Rbc8 {[%clk 0:00:41]} 24. b4 {[%clk 0:01:20]}  f4 {[%clk 0:00:40]} 25. c5 {[%clk 0:01:18]}  fxg3 {[%clk 0:00:33]} 26. fxg3 {[%clk 0:01:17]}  Be3+ {[%clk 0:00:31]} 27. Kh1 {[%clk 0:01:13]}  Qh5 {[%clk 0:00:29]} 28. Nfg1 {[%clk 0:01:04]}  dxc5 {[%clk 0:00:28]} 29. Bxb7 {[%clk 0:00:57]}  Bxh3 {[%clk 0:00:27]} 30. Bf3 {[%clk 0:00:45]}  Bg4+ {[%clk 0:00:26]} 31. Kg2 {[%clk 0:00:45]}  Bxg1 {[%clk 0:00:16]} 32. Nxg1 {[%clk 0:00:43]}  Bxf3+ {[%clk 0:00:16]} 33. Nxf3 {[%clk 0:00:44]}  Ng4 {[%clk 0:00:17]} 34. Qd7 {[%clk 0:00:27]}  Ne3+ {[%clk 0:00:15]} 35. Kg1 {[%clk 0:00:27]}  Nxf1 {[%clk 0:00:12]} 36. Rxf1 {[%clk 0:00:25]}  Qf7 {[%clk 0:00:10]} 37. Qd6 {[%clk 0:00:20]}  Qg7 {[%clk 0:00:09]} 38. Kg2 {[%clk 0:00:17]}  cxb4 {[%clk 0:00:09]} 39. Nxe5 {[%clk 0:00:12]}  Rc2+ {[%clk 0:00:08]} 40. Kh3 {[%clk 0:00:11]}  Rxf1 {[%clk 0:00:05]} 41. Qxd4 {[%clk 0:00:07]}  Rf8 {[%clk 0:00:04]} 42. Qd5 {[%clk 0:00:04]}  Rcf2 {[%clk 0:00:03]} 43. Ng4 {[%clk 0:00:04]}  R2f5 {[%clk 0:00:01]} 44. Qe4 {[%clk 0:00:04]}  Qg6 {[%clk 0:00:02]} 45. Qd4+ {[%clk 0:00:03]}  Qg7 {[%clk 0:00:02]} 46. Qe4 {[%clk 0:00:04]}  Qg6 {[%clk 0:00:03]} 47. Qd4+ {[%clk 0:00:03]}  R5f6 {[%clk 0:00:03]} 48. Qe4 {[%clk 0:00:04]}  Qxe4 {[%clk 0:00:03]} 49. dxe4 {[%clk 0:00:04]}  h5 {[%clk 0:00:04]} 50. Ne5 {[%clk 0:00:04]}  Re6 {[%clk 0:00:04]} 51. Nc4 {[%clk 0:00:03]}  Kg7 {[%clk 0:00:05]} 52. Nb6 {[%clk 0:00:03]}  Rxb6 {[%clk 0:00:05]} 53. axb6 {[%clk 0:00:01]}  Rb8 {[%clk 0:00:06]} 54. e5 {[%clk 0:00:02]}  Rxb6 {[%clk 0:00:06]} 55. e6 {[%clk 0:00:03]}  Rxe6 {[%clk 0:00:07]} 56. g4 {[%clk 0:00:04]}  Rb6 {[%clk 0:00:08]} 57. Kh4 {[%clk 0:00:05]}  Kh6 {[%clk 0:00:08]} 58. g5+ {[%clk 0:00:05]}  Kg6 {[%clk 0:00:09]} 59. Kg3 {[%clk 0:00:05]}  Kxg5 {[%clk 0:00:09]} 60. Kf3 {[%clk 0:00:05]}  b3 {[%clk 0:00:10]} 61. Ke4 {[%clk 0:00:06]}  b2 {[%clk 0:00:11]} 62. Kd4 {[%clk 0:00:07]}  b1=Q {[%clk 0:00:12]} 0-1


[Site "https://www.chess.com"]

[Event "Titled Tuesday Blitz October 11 Early 2022"]
[White "Villamayor, Buenaventura"]
[Black "Ambartsumova, Karina"]
[WhiteFideId "5200393"]
[BlackFideId "4166299"]
[WhiteElo "2301"]
[BlackElo "2299"]
[Result "1-0"]
[Round "11"]
[TimeControl "180+1"]
[Date "2022.10.12"]
[WhiteClock "0:00:06"]
[BlackClock "0:00:04"]

1. e4 {[%clk 0:03:00]}  e5 {[%clk 0:02:59]} 2. Nf3 {[%clk 0:02:57]}  Nc6 {[%clk 0:02:59]} 3. d4 {[%clk 0:02:54]}  exd4 {[%clk 0:02:59]} 4. Nxd4 {[%clk 0:02:55]}  Nf6 {[%clk 0:03:00]} 5. Nxc6 {[%clk 0:02:55]}  bxc6 {[%clk 0:03:00]} 6. e5 {[%clk 0:02:55]}  Qe7 {[%clk 0:03:00]} 7. Qe2 {[%clk 0:02:55]}  Nd5 {[%clk 0:03:01]} 8. c4 {[%clk 0:02:55]}  Nb6 {[%clk 0:02:59]} 9. Nc3 {[%clk 0:02:55]}  g6 {[%clk 0:02:58]} 10. g3 {[%clk 0:02:50]}  Bg7 {[%clk 0:02:58]} 11. f4 {[%clk 0:02:50]}  Ba6 {[%clk 0:02:54]} 12. b3 {[%clk 0:02:48]}  d6 {[%clk 0:02:49]} 13. Ba3 {[%clk 0:02:41]}  O-O {[%clk 0:02:21]} 14. Bg2 {[%clk 0:02:34]}  Qe6 {[%clk 0:02:16]} 15. Bxc6 {[%clk 0:02:23]}  dxe5 {[%clk 0:01:51]} 16. Bxa8 {[%clk 0:02:16]}  Rxa8 {[%clk 0:01:50]} 17. O-O-O {[%clk 0:02:00]}  Rb8 {[%clk 0:01:05]} 18. Ne4 {[%clk 0:01:38]}  exf4 {[%clk 0:00:51]} 19. gxf4 {[%clk 0:01:31]}  Bxc4 {[%clk 0:00:30]} 20. Qc2 {[%clk 0:01:16]}  Bd5 {[%clk 0:00:26]} 21. Rhe1 {[%clk 0:01:10]}  c6 {[%clk 0:00:21]} 22. Nc5 {[%clk 0:01:01]}  Qf6 {[%clk 0:00:21]} 23. Bb2 {[%clk 0:00:59]}  Qxf4+ {[%clk 0:00:22]} 24. Kb1 {[%clk 0:00:58]}  Bxb2 {[%clk 0:00:20]} 25. Qxb2 {[%clk 0:00:59]}  Nc4 {[%clk 0:00:16]} 26. Qc3 {[%clk 0:00:57]}  Nd6 {[%clk 0:00:15]} 27. Re7 {[%clk 0:00:50]}  Qf5+ {[%clk 0:00:13]} 28. Ka1 {[%clk 0:00:46]}  Nb5 {[%clk 0:00:12]} 29. Qb2 {[%clk 0:00:41]}  Nd6 {[%clk 0:00:10]} 30. Rde1 {[%clk 0:00:41]}  Rd8 {[%clk 0:00:08]} 31. Nb7 {[%clk 0:00:33]}  Rf8 {[%clk 0:00:08]} 32. Nxd6 {[%clk 0:00:31]}  Qf4 {[%clk 0:00:08]} 33. Ne8 {[%clk 0:00:24]}  f6 {[%clk 0:00:07]} 34. Rd7 {[%clk 0:00:18]}  h5 {[%clk 0:00:06]} 35. Rg7+ {[%clk 0:00:16]}  Kh8 {[%clk 0:00:06]} 36. Rxg6 {[%clk 0:00:14]}  Be4 {[%clk 0:00:05]} 37. Nxf6 {[%clk 0:00:09]}  Qh4 {[%clk 0:00:04]} 38. Nxe4+ {[%clk 0:00:07]}  Kh7 {[%clk 0:00:04]} 39. Qg7# {[%clk 0:00:06]} 1-0


[Site "https://www.chess.com"]

[Event "Titled Tuesday Blitz October 11 Early 2022"]
[White "Winterberg, Lukas"]
[Black "Vlassov, Nikolai"]
[WhiteFideId "24622702"]
[BlackFideId "4103360"]
[WhiteElo "2349"]
[BlackElo "2324"]
[Result "0-1"]
[Round "11"]
[TimeControl "180+1"]
[Date "2022.10.12"]
[WhiteClock "0:00:04"]
[BlackClock "0:00:16"]

1. e4 {[%clk 0:03:00]}  c5 {[%clk 0:02:59]} 2. Nf3 {[%clk 0:03:00]}  d6 {[%clk 0:02:59]} 3. c3 {[%clk 0:03:00]}  Nf6 {[%clk 0:02:59]} 4. Be2 {[%clk 0:02:57]}  g6 {[%clk 0:02:58]} 5. O-O {[%clk 0:02:55]}  Bg7 {[%clk 0:02:58]} 6. d3 {[%clk 0:02:55]}  O-O {[%clk 0:02:58]} 7. Nbd2 {[%clk 0:02:54]}  Nc6 {[%clk 0:02:58]} 8. Ne1 {[%clk 0:02:51]}  b5 {[%clk 0:02:57]} 9. f4 {[%clk 0:02:51]}  b4 {[%clk 0:02:56]} 10. Qc2 {[%clk 0:02:46]}  bxc3 {[%clk 0:02:55]} 11. bxc3 {[%clk 0:02:46]}  a5 {[%clk 0:02:46]} 12. h3 {[%clk 0:02:40]}  Ba6 {[%clk 0:02:47]} 13. Nef3 {[%clk 0:02:32]}  Nd7 {[%clk 0:02:44]} 14. g4 {[%clk 0:02:10]}  Nb4 {[%clk 0:02:41]} 15. cxb4 {[%clk 0:01:44]}  Bxa1 {[%clk 0:02:39]} 16. bxa5 {[%clk 0:01:40]}  Bg7 {[%clk 0:02:36]} 17. Nb3 {[%clk 0:01:34]}  Rc8 {[%clk 0:02:32]} 18. Bd2 {[%clk 0:01:28]}  Qc7 {[%clk 0:02:32]} 19. Rc1 {[%clk 0:01:22]}  Nb8 {[%clk 0:02:26]} 20. f5 {[%clk 0:01:19]}  Nc6 {[%clk 0:02:26]} 21. g5 {[%clk 0:01:18]}  Rb8 {[%clk 0:02:15]} 22. h4 {[%clk 0:01:13]}  Nb4 {[%clk 0:02:12]} 23. Qb1 {[%clk 0:01:06]}  d5 {[%clk 0:02:01]} 24. Kg2 {[%clk 0:00:54]}  dxe4 {[%clk 0:01:59]} 25. Ne1 {[%clk 0:00:48]}  exd3 {[%clk 0:01:58]} 26. Nxd3 {[%clk 0:00:46]}  Nxd3 {[%clk 0:01:54]} 27. Bxd3 {[%clk 0:00:46]}  Bxd3 {[%clk 0:01:53]} 28. Qxd3 {[%clk 0:00:47]}  Rfd8 {[%clk 0:01:52]} 29. Qe3 {[%clk 0:00:43]}  Qc6+ {[%clk 0:01:38]} 30. Kh3 {[%clk 0:00:39]}  Qd7 {[%clk 0:01:36]} 31. Rxc5 {[%clk 0:00:36]}  gxf5 {[%clk 0:01:09]} 32. Qf4 {[%clk 0:00:23]}  Rxb3+ {[%clk 0:01:00]} 33. axb3 {[%clk 0:00:24]}  Qxd2 {[%clk 0:00:59]} 34. Qxd2 {[%clk 0:00:25]}  Rxd2 {[%clk 0:00:59]} 35. b4 {[%clk 0:00:25]}  Ra2 {[%clk 0:00:47]} 36. Rxf5 {[%clk 0:00:23]}  Bc3 {[%clk 0:00:43]} 37. Rf4 {[%clk 0:00:20]}  Ra4 {[%clk 0:00:42]} 38. Rc4 {[%clk 0:00:20]}  Bxb4 {[%clk 0:00:40]} 39. Kg4 {[%clk 0:00:20]}  Kg7 {[%clk 0:00:38]} 40. a6 {[%clk 0:00:20]}  h6 {[%clk 0:00:29]} 41. a7 {[%clk 0:00:17]}  hxg5 {[%clk 0:00:28]} 42. hxg5 {[%clk 0:00:18]}  Rxa7 {[%clk 0:00:23]} 43. Rxb4 {[%clk 0:00:18]}  Kg6 {[%clk 0:00:23]} 44. Re4 {[%clk 0:00:12]}  e6 {[%clk 0:00:22]} 45. Rf4 {[%clk 0:00:12]}  Ra5 {[%clk 0:00:21]} 46. Rf6+ {[%clk 0:00:12]}  Kg7 {[%clk 0:00:21]} 47. Rf4 {[%clk 0:00:12]}  Re5 {[%clk 0:00:20]} 48. Kh4 {[%clk 0:00:10]}  Rf5 {[%clk 0:00:19]} 49. Rxf5 {[%clk 0:00:09]}  exf5 {[%clk 0:00:19]} 50. Kh5 {[%clk 0:00:09]}  f6 {[%clk 0:00:17]} 51. g6 {[%clk 0:00:03]}  Kg8 {[%clk 0:00:15]} 52. Kh4 {[%clk 0:00:03]}  Kh8 {[%clk 0:00:14]} 53. Kg3 {[%clk 0:00:03]}  Kg7 {[%clk 0:00:14]} 54. Kf4 {[%clk 0:00:02]}  Kxg6 {[%clk 0:00:14]} 55. Kf3 {[%clk 0:00:02]}  Kg5 {[%clk 0:00:15]} 56. Kg3 {[%clk 0:00:02]}  f4+ {[%clk 0:00:15]} 57. Kf3 {[%clk 0:00:03]}  Kf5 {[%clk 0:00:15]} 58. Kf2 {[%clk 0:00:03]}  Ke4 {[%clk 0:00:16]} 59. Kg2 {[%clk 0:00:04]}  f3+ {[%clk 0:00:16]} 0-1


[Site "https://www.chess.com"]

[Event "Titled Tuesday Blitz October 11 Early 2022"]
[White "Wirig, Anthony"]
[Black "Fernandez De La Vara, Arnaldo"]
[WhiteFideId "615013"]
[BlackFideId "3518388"]
[WhiteElo "2474"]
[BlackElo "2387"]
[Result "0-1"]
[Round "11"]
[TimeControl "180+1"]
[Date "2022.10.11"]
[WhiteClock "0:00:04"]
[BlackClock "0:00:03"]

1. e4 {[%clk 0:03:00]}  c5 {[%clk 0:03:00]} 2. d4 {[%clk 0:03:00]}  cxd4 {[%clk 0:03:00]} 3. c3 {[%clk 0:03:01]}  d3 {[%clk 0:03:00]} 4. c4 {[%clk 0:03:01]}  Nc6 {[%clk 0:03:01]} 5. Nc3 {[%clk 0:03:00]}  g6 {[%clk 0:03:01]} 6. Bxd3 {[%clk 0:03:00]}  Bg7 {[%clk 0:03:02]} 7. Nf3 {[%clk 0:03:00]}  Nf6 {[%clk 0:03:02]} 8. h3 {[%clk 0:03:00]}  O-O {[%clk 0:03:02]} 9. O-O {[%clk 0:03:01]}  d6 {[%clk 0:03:02]} 10. Bg5 {[%clk 0:03:01]}  Be6 {[%clk 0:02:59]} 11. Rc1 {[%clk 0:03:01]}  Nd7 {[%clk 0:02:59]} 12. Be2 {[%clk 0:02:52]}  Nc5 {[%clk 0:02:56]} 13. Nd2 {[%clk 0:02:46]}  Qb6 {[%clk 0:02:07]} 14. b3 {[%clk 0:02:29]}  Qa5 {[%clk 0:01:53]} 15. Nd5 {[%clk 0:02:21]}  Rfe8 {[%clk 0:01:41]} 16. a4 {[%clk 0:02:09]}  Bxd5 {[%clk 0:01:22]} 17. exd5 {[%clk 0:02:08]}  Nd4 {[%clk 0:01:01]} 18. Be3 {[%clk 0:01:50]}  Qb4 {[%clk 0:00:59]} 19. Rb1 {[%clk 0:01:47]}  a6 {[%clk 0:00:55]} 20. Nf3 {[%clk 0:01:38]}  Nxe2+ {[%clk 0:00:34]} 21. Qxe2 {[%clk 0:01:37]}  b5 {[%clk 0:00:35]} 22. cxb5 {[%clk 0:01:34]}  axb5 {[%clk 0:00:36]} 23. axb5 {[%clk 0:01:33]}  Reb8 {[%clk 0:00:31]} 24. Bd2 {[%clk 0:01:29]}  Qxb5 {[%clk 0:00:26]} 25. Qxe7 {[%clk 0:01:29]}  Rb6 {[%clk 0:00:14]} 26. Rfe1 {[%clk 0:01:17]}  Nd3 {[%clk 0:00:12]} 27. Re4 {[%clk 0:01:16]}  Qxd5 {[%clk 0:00:03]} 28. Qh4 {[%clk 0:00:20]}  Bf8 {[%clk 0:00:03]} 29. Rd4 {[%clk 0:00:16]}  Qf5 {[%clk 0:00:04]} 30. Rd1 {[%clk 0:00:14]}  Ne5 {[%clk 0:00:03]} 31. Nh2 {[%clk 0:00:09]}  h5 {[%clk 0:00:03]} 32. Be3 {[%clk 0:00:09]}  Nc6 {[%clk 0:00:03]} 33. g4 {[%clk 0:00:09]}  hxg4 {[%clk 0:00:02]} 34. hxg4 {[%clk 0:00:10]}  Qe6 {[%clk 0:00:02]} 35. Rd5 {[%clk 0:00:09]}  Rb4 {[%clk 0:00:02]} 36. Kf1 {[%clk 0:00:03]}  Ne5 {[%clk 0:00:02]} 37. Qg3 {[%clk 0:00:04]}  Rxb3 {[%clk 0:00:02]} 38. R5d4 {[%clk 0:00:04]}  Rab8 {[%clk 0:00:02]} 39. Kg2 {[%clk 0:00:04]}  Rb1 {[%clk 0:00:03]} 40. Kg1 {[%clk 0:00:04]}  Rxd1+ {[%clk 0:00:03]} 41. Rxd1 {[%clk 0:00:05]}  Rb3 {[%clk 0:00:03]} 42. Qg2 {[%clk 0:00:04]}  Bg7 {[%clk 0:00:04]} 43. f4 {[%clk 0:00:04]}  Rxe3 {[%clk 0:00:03]} 44. fxe5 {[%clk 0:00:04]}  Bxe5 {[%clk 0:00:04]} 45. Nf3 {[%clk 0:00:05]}  Re4 {[%clk 0:00:04]} 46. Ng5 {[%clk 0:00:05]}  Bd4+ {[%clk 0:00:02]} 47. Kh1 {[%clk 0:00:04]}  Re1+ {[%clk 0:00:02]} 48. Kh2 {[%clk 0:00:03]}  Qe5+ {[%clk 0:00:01]} 49. Kh3 {[%clk 0:00:03]}  Rxd1 {[%clk 0:00:02]} 50. Qb7 {[%clk 0:00:03]}  Qe3+ {[%clk 0:00:03]} 51. Kh4 {[%clk 0:00:03]}  Rh1+ {[%clk 0:00:03]} 52. Nh3 {[%clk 0:00:04]}  Rxh3# {[%clk 0:00:03]} 0-1


[Site "https://www.chess.com"]

[Event "Titled Tuesday Blitz October 11 Early 2022"]
[White "Xu, Yi"]
[Black "Sarana, Alexey"]
[WhiteFideId "8605564"]
[BlackFideId "24133795"]
[WhiteElo "2471"]
[BlackElo "2689"]
[Result "0-1"]
[Round "11"]
[TimeControl "180+1"]
[Date "2022.10.11"]
[WhiteClock "0:00:09"]
[BlackClock "0:01:30"]

1. e4 {[%clk 0:03:00]}  c5 {[%clk 0:03:00]} 2. Nf3 {[%clk 0:03:01]}  d6 {[%clk 0:03:01]} 3. d4 {[%clk 0:03:00]}  cxd4 {[%clk 0:03:02]} 4. Nxd4 {[%clk 0:03:01]}  Nf6 {[%clk 0:03:02]} 5. Nc3 {[%clk 0:03:01]}  a6 {[%clk 0:03:03]} 6. Bg5 {[%clk 0:03:00]}  e6 {[%clk 0:03:00]} 7. f4 {[%clk 0:03:00]}  Nbd7 {[%clk 0:03:00]} 8. Qe2 {[%clk 0:02:49]}  Qc7 {[%clk 0:02:59]} 9. O-O-O {[%clk 0:02:49]}  b5 {[%clk 0:02:59]} 10. a3 {[%clk 0:02:47]}  Rb8 {[%clk 0:02:53]} 11. g4 {[%clk 0:02:37]}  Be7 {[%clk 0:02:53]} 12. Bxf6 {[%clk 0:02:34]}  Bxf6 {[%clk 0:02:51]} 13. g5 {[%clk 0:02:35]}  Bxd4 {[%clk 0:02:48]} 14. Rxd4 {[%clk 0:02:35]}  e5 {[%clk 0:02:41]} 15. Nd5 {[%clk 0:02:15]}  Qa7 {[%clk 0:02:39]} 16. Rd1 {[%clk 0:02:11]}  exf4 {[%clk 0:02:39]} 17. Nxf4 {[%clk 0:01:59]}  Ne5 {[%clk 0:02:38]} 18. Rxd6 {[%clk 0:01:55]}  O-O {[%clk 0:02:37]} 19. Rd1 {[%clk 0:01:43]}  Bg4 {[%clk 0:02:36]} 20. Qd2 {[%clk 0:01:24]}  Bxd1 {[%clk 0:02:34]} 21. Kxd1 {[%clk 0:01:25]}  Rbd8 {[%clk 0:02:21]} 22. Nd5 {[%clk 0:01:25]}  Rfe8 {[%clk 0:02:09]} 23. Be2 {[%clk 0:01:24]}  Qf2 {[%clk 0:02:01]} 24. Rf1 {[%clk 0:01:05]}  Qxh2 {[%clk 0:01:59]} 25. Kc1 {[%clk 0:01:02]}  Nc4 {[%clk 0:01:49]} 26. Qd3 {[%clk 0:00:55]}  Qe5 {[%clk 0:01:45]} 27. Qc3 {[%clk 0:00:31]}  Qxg5+ {[%clk 0:01:41]} 28. Nf4 {[%clk 0:00:16]}  Rxe4 {[%clk 0:01:39]} 29. Qf3 {[%clk 0:00:14]}  Rde8 {[%clk 0:01:31]} 30. Kb1 {[%clk 0:00:09]}  Rxf4 {[%clk 0:01:30]} 0-1


[Site "https://www.chess.com"]

[Event "Titled Tuesday Blitz October 11 Early 2022"]
[White "Yurovskykh, Oleksandr"]
[Black "Averjanov, Alexey"]
[WhiteFideId "14134020"]
[BlackFideId "14109867"]
[WhiteElo "2303"]
[BlackElo "2684"]
[Result "1-0"]
[Round "11"]
[TimeControl "180+1"]
[Date "2022.10.12"]
[WhiteClock "0:00:06"]
[BlackClock "0:00:01"]

1. d4 {[%clk 0:03:00]}  d5 {[%clk 0:02:59]} 2. Bf4 {[%clk 0:03:00]}  Nf6 {[%clk 0:02:59]} 3. e3 {[%clk 0:03:00]}  e6 {[%clk 0:02:59]} 4. Nd2 {[%clk 0:03:00]}  c5 {[%clk 0:02:59]} 5. c3 {[%clk 0:03:01]}  Bd6 {[%clk 0:02:59]} 6. Bg3 {[%clk 0:03:01]}  Qc7 {[%clk 0:02:59]} 7. dxc5 {[%clk 0:03:01]}  Qxc5 {[%clk 0:02:59]} 8. Ngf3 {[%clk 0:03:01]}  Nbd7 {[%clk 0:02:57]} 9. Bd3 {[%clk 0:03:01]}  O-O {[%clk 0:02:57]} 10. e4 {[%clk 0:03:00]}  Bxg3 {[%clk 0:02:55]} 11. hxg3 {[%clk 0:03:00]}  dxe4 {[%clk 0:02:54]} 12. Nxe4 {[%clk 0:02:57]}  Nxe4 {[%clk 0:02:51]} 13. Bxe4 {[%clk 0:02:58]}  Nf6 {[%clk 0:02:50]} 14. Qc2 {[%clk 0:02:41]}  h6 {[%clk 0:02:50]} 15. O-O {[%clk 0:02:30]}  e5 {[%clk 0:02:42]} 16. Rfe1 {[%clk 0:02:26]}  Re8 {[%clk 0:02:40]} 17. Rad1 {[%clk 0:02:23]}  Rb8 {[%clk 0:02:26]} 18. Nd2 {[%clk 0:01:53]}  Be6 {[%clk 0:02:12]} 19. Bf3 {[%clk 0:01:46]}  b5 {[%clk 0:02:07]} 20. a3 {[%clk 0:01:45]}  a5 {[%clk 0:02:06]} 21. Ne4 {[%clk 0:01:44]}  Nxe4 {[%clk 0:02:06]} 22. Bxe4 {[%clk 0:01:45]}  b4 {[%clk 0:01:57]} 23. axb4 {[%clk 0:01:45]}  axb4 {[%clk 0:01:57]} 24. cxb4 {[%clk 0:01:46]}  Qxb4 {[%clk 0:01:50]} 25. Rd2 {[%clk 0:01:02]}  Rec8 {[%clk 0:01:49]} 26. Qd3 {[%clk 0:01:00]}  f5 {[%clk 0:01:07]} 27. Bd5 {[%clk 0:01:00]}  Bxd5 {[%clk 0:00:58]} 28. Qxd5+ {[%clk 0:01:01]}  Kh7 {[%clk 0:00:56]} 29. Rxe5 {[%clk 0:00:58]}  Rc1+ {[%clk 0:00:34]} 30. Kh2 {[%clk 0:00:53]}  Qg4 {[%clk 0:00:33]} 31. Rxf5 {[%clk 0:00:38]}  Rd8 {[%clk 0:00:30]} 32. Qxd8 {[%clk 0:00:33]}  Qxf5 {[%clk 0:00:27]} 33. Qd3 {[%clk 0:00:27]}  Qxd3 {[%clk 0:00:28]} 34. Rxd3 {[%clk 0:00:27]}  Rc2 {[%clk 0:00:28]} 35. b4 {[%clk 0:00:28]}  Rxf2 {[%clk 0:00:28]} 36. Rb3 {[%clk 0:00:28]}  Rf6 {[%clk 0:00:28]} 37. g4 {[%clk 0:00:24]}  Kg6 {[%clk 0:00:23]} 38. Kg3 {[%clk 0:00:25]}  Kg5 {[%clk 0:00:23]} 39. b5 {[%clk 0:00:20]}  Rb6 {[%clk 0:00:20]} 40. Rb4 {[%clk 0:00:20]}  g6 {[%clk 0:00:17]} 41. Kf3 {[%clk 0:00:20]}  Kf6 {[%clk 0:00:16]} 42. Ke4 {[%clk 0:00:20]}  Ke6 {[%clk 0:00:16]} 43. Kd4 {[%clk 0:00:20]}  Kd6 {[%clk 0:00:16]} 44. Rb1 {[%clk 0:00:20]}  Rb8 {[%clk 0:00:14]} 45. b6 {[%clk 0:00:21]}  Kc6 {[%clk 0:00:13]} 46. Ke5 {[%clk 0:00:15]}  Kb7 {[%clk 0:00:11]} 47. Kf6 {[%clk 0:00:14]}  Rf8+ {[%clk 0:00:08]} 48. Kxg6 {[%clk 0:00:14]}  Rg8+ {[%clk 0:00:08]} 49. Kh5 {[%clk 0:00:14]}  Rg5+ {[%clk 0:00:08]} 50. Kh4 {[%clk 0:00:13]}  Rc5 {[%clk 0:00:08]} 51. Rf1 {[%clk 0:00:11]}  Kxb6 {[%clk 0:00:02]} 52. Rf6+ {[%clk 0:00:11]}  Kc7 {[%clk 0:00:03]} 53. Rxh6 {[%clk 0:00:11]}  Kd7 {[%clk 0:00:04]} 54. Rf6 {[%clk 0:00:12]}  Ke7 {[%clk 0:00:03]} 55. Rf2 {[%clk 0:00:10]}  Rc1 {[%clk 0:00:03]} 56. Kg5 {[%clk 0:00:09]}  Rc6 {[%clk 0:00:02]} 57. Kh5 {[%clk 0:00:09]}  Rc2 {[%clk 0:00:01]} 58. Rxc2 {[%clk 0:00:06]} 1-0


[Site "https://www.chess.com"]

[Event "Titled Tuesday Blitz October 11 Early 2022"]
[White "Zaloznyy, Mike"]
[Black "Kiseljova, Marya"]
[WhiteFideId "2023075"]
[BlackFideId "4155009"]
[WhiteElo "2126"]
[BlackElo "1931"]
[Result "0-1"]
[Round "11"]
[TimeControl "180+1"]
[Date "2022.10.12"]
[WhiteClock "0:00:04"]
[BlackClock "0:00:21"]

1. Nf3 {[%clk 0:03:00]}  d5 {[%clk 0:02:59]} 2. b3 {[%clk 0:02:57]}  Bg4 {[%clk 0:02:59]} 3. Ne5 {[%clk 0:02:55]}  Bf5 {[%clk 0:02:55]} 4. g4 {[%clk 0:02:53]}  Bg6 {[%clk 0:02:54]} 5. h4 {[%clk 0:02:50]}  Qd6 {[%clk 0:02:37]} 6. Bb2 {[%clk 0:02:48]}  h5 {[%clk 0:02:26]} 7. Bg2 {[%clk 0:02:13]}  hxg4 {[%clk 0:02:22]} 8. Nxg6 {[%clk 0:02:12]}  Qxg6 {[%clk 0:02:20]} 9. Bxd5 {[%clk 0:02:12]}  c6 {[%clk 0:02:15]} 10. Bg2 {[%clk 0:02:09]}  Nf6 {[%clk 0:02:08]} 11. Nc3 {[%clk 0:02:06]}  Nbd7 {[%clk 0:02:03]} 12. e3 {[%clk 0:01:50]}  e5 {[%clk 0:01:56]} 13. Qe2 {[%clk 0:01:44]}  Qxc2 {[%clk 0:01:50]} 14. Na4 {[%clk 0:01:04]}  Bb4 {[%clk 0:01:33]} 15. Rc1 {[%clk 0:00:57]}  Qf5 {[%clk 0:01:30]} 16. Qc4 {[%clk 0:00:51]}  Be7 {[%clk 0:01:20]} 17. Nc3 {[%clk 0:00:13]}  O-O {[%clk 0:01:19]} 18. h5 {[%clk 0:00:11]}  Rac8 {[%clk 0:00:59]} 19. h6 {[%clk 0:00:10]}  g6 {[%clk 0:00:55]} 20. Ne2 {[%clk 0:00:10]}  b5 {[%clk 0:00:51]} 21. Qc3 {[%clk 0:00:07]}  Ne4 {[%clk 0:00:40]} 22. h7+ {[%clk 0:00:06]}  Kh8 {[%clk 0:00:39]} 23. Bxe4 {[%clk 0:00:05]}  Qxe4 {[%clk 0:00:38]} 24. Ng3 {[%clk 0:00:06]}  Qf3 {[%clk 0:00:36]} 25. Qd3 {[%clk 0:00:06]}  f5 {[%clk 0:00:25]} 26. Qxd7 {[%clk 0:00:05]}  Bf6 {[%clk 0:00:22]} 27. Rxc6 {[%clk 0:00:03]}  Rxc6 {[%clk 0:00:21]} 28. Qxc6 {[%clk 0:00:04]}  Qxc6 {[%clk 0:00:21]} 0-1


[Site "https://www.chess.com"]